fUST/lending_fUST_20241013
["ID","MTS","AMOUNT","RATE_DAILY","PERIOD"]
[340173930,1728762567895,-302.39527295,0.0003605,2]
[340173931,1728762567918,-214.635,0.00036067,44]
[340173932,1728762567949,-250.0,0.00036078,2]
[340173933,1728762567971,-500.0,0.00036129,5]
[340173934,1728762567993,-500.0,0.00036129,5]
[340173935,1728762568015,-327.0076007,0.00036159,2]
[340173936,1728762568037,-500.0,0.00036167,5]
[340173937,1728762568060,-250.0,0.00036174,2]
[340173938,1728762568084,-1068.6,0.00036224,3]
[340173939,1728762568108,-534.3,0.00036224,3]
[340173940,1728762568131,-250.0,0.0003627,2]
[340173941,1728762568156,-250.0,0.00036366,2]
[340173942,1728762568179,-250.0,0.00036462,2]
[340173943,1728762568200,-250.0,0.00036557,2]
[340173944,1728762568222,-1613.0,0.00036575,2]
[340173945,1728762568243,-250.0,0.00036653,2]
[340173946,1728762568264,-250.0,0.00036749,2]
[340173947,1728762568285,-1000.0,0.0003677,5]
[340173948,1728762568306,-1000.0,0.0003677,5]
[340173949,1728762568329,-199.63021317,0.00036881,5]
[340173950,1728762568352,-156.0,0.000369,2]
[340173951,1728762568376,-500.0,0.00037083,5]
[340173952,1728762573688,500.0,0.000354,5]
[340173953,1728762573743,1000.0,0.0003677,5]
[340173954,1728762577887,368.95888599,0.000354,5]
[340173955,1728762577914,131.04111401,0.000354,5]
[340173956,1728762577947,1000.0,0.0003677,5]
[340173957,1728762585510,6797.68909465,0.00035193,2]
[340173997,1728762632441,-63.724991,0.00035193,2]
[340174032,1728762638839,-501.8933263,0.00035193,2]
[340174092,1728762640548,-3535.16113735,0.00035193,2]
[340174093,1728762640561,-1000.0,0.0003725,5]
[340174094,1728762640575,-400.0,0.00037356,2]
[340174095,1728762640588,-400.0,0.00037357,2]
[340174096,1728762640601,-327.0076007,0.00037489,2]
[340174097,1728762640616,-1000.0,0.00037537,5]
[340174098,1728762640630,-529.597,0.00038,60]
[340174099,1728762640643,-500.0,0.00038594,15]
[340174100,1728762640657,-623.04423731,0.00038594,15]
[340174101,1728762640669,-167.35556341,0.00038594,15]
[340174102,1728762640681,-72333.4632131,0.00038595,5]
[340174103,1728762640694,-13857.3891472,0.00038595,5]
[340174104,1728762640708,-10000.0,0.00038605,2]
[340174105,1728762640726,-1047.54194078,0.00038773,5]
[340174106,1728762640739,-1500.0,0.00038773,5]
[340174107,1728762640753,-1500.0,0.00038773,5]
[340174108,1728762640766,-327.0076007,0.00038818,2]
[340174109,1728762640779,-150.112233,0.000389,7]
[340174110,1728762640793,-7751.75743912,0.00039,7]
[340174111,1728762640807,-150.112233,0.000391,10]
[340174112,1728762640822,-150.112233,0.000392,9]
[340174113,1728762640835,-317.00922893,0.00039253,5]
[340174114,1728762640848,-150.112233,0.000394,8]
[340174115,1728762640861,-189.45736704,0.00039529,15]
[340174116,1728762640875,-154.99314745,0.00039529,15]
[340174117,1728762640888,-72333.4632131,0.0003953,5]
[340174118,1728762640899,-13857.3891472,0.0003953,5]
[340174119,1728762640911,-28050.01088808,0.00039539,3]
[340174120,1728762640923,-1500.0,0.0003954,5]
[340174121,1728762640936,-150.0,0.00039573,5]
[340174122,1728762640947,-150.112233,0.000396,6]
[340174123,1728762640959,-150.112233,0.000398,6]
[340174124,1728762640971,-144666.926426,0.00039836,5]
[340174125,1728762641081,-27714.7782944,0.00039836,6]
[340174126,1728762641095,-151.0,0.00039836,14]
[340174127,1728762641105,-706.654883,0.00039836,14]
[340174128,1728762641115,-706.654883,0.00039836,14]
[340174129,1728762641124,-152.986217,0.00039836,14]
[340174130,1728762641133,-151.0,0.00039836,14]
[340174131,1728762641143,-13857.3891472,0.00039944,6]
[340174132,1728762641153,-68776.59109741,0.00039954,2]
[340174133,1728762641163,-207.66918,0.00039954,14]
[340174134,1728762641172,-706.654883,0.00039954,14]
[340174135,1728762641182,-706.654883,0.00039954,14]
[340174136,1728762641192,-151.0,0.00039954,14]
[340174137,1728762641201,-151.0,0.00039954,14]
[340174138,1728762641210,-560.0,0.00039956,5]
[340174139,1728762641221,-13857.3891472,0.0003999,6]
[340174140,1728762641231,-3686.83822105,0.0004,7]
[340174141,1728762641240,-360.391783,0.0004,2]
[340174142,1728762641249,-150.112233,0.0004,6]
[340174143,1728762641263,-1562.80773615,0.000401,120]
[340174144,1728762641273,-250.0,0.00040121,5]
[340174145,1728762641284,-327.0076007,0.00040148,2]
[340174146,1728762641296,-252.068897,0.00040168,2]
[340174147,1728762641307,-4430.54106652,0.00040173,2]
[340174148,1728762641319,-150.112233,0.000402,7]
[340174149,1728762641330,-27714.7782944,0.00040228,6]
[340174150,1728762641343,-161.60378812,0.00040237,30]
[340174151,1728762641354,-13857.3891472,0.00040238,6]
[340174152,1728762641364,-229.683291,0.00040238,14]
[340174153,1728762641376,-151.0,0.00040238,14]
[340174154,1728762641386,-151.0,0.00040238,3]
[340174155,1728762641396,-151.0,0.00040238,2]
[340174156,1728762641406,-151.0,0.00040238,14]
[340174157,1728762641415,-151.0,0.00040238,14]
[340174158,1728762641426,-151.0,0.00040238,14]
[340174159,1728762641438,-151.0,0.00040238,14]
[340174160,1728762641449,-151.0,0.00040238,14]
[340174161,1728762641459,-197.997142,0.00040238,14]
[340174162,1728762641470,-151.0,0.00040238,14]
[340174163,1728762641479,-206.321065,0.00040238,14]
[340174164,1728762641490,-197.997142,0.00040238,14]
[340174165,1728762641501,-151.0,0.00040238,14]
[340174166,1728762641512,-151.0,0.00040238,14]
[340174167,1728762641523,-151.0,0.00040238,14]
[340174168,1728762641534,-151.0,0.00040238,14]
[340174169,1728762641545,-641.006733,0.00040238,2]
[340174170,1728762641554,-641.006733,0.00040238,2]
[340174171,1728762641565,-641.006733,0.00040238,2]
[340174172,1728762641574,-641.006733,0.00040238,2]
[340174173,1728762641585,-1000.0,0.00040247,120]
[340174174,1728762641595,-26600.76507654,0.00040248,2]
[340174175,1728762641606,-500.0,0.00040273,5]
[340174176,1728762641616,-500.0,0.00040273,5]
[340174177,1728762641628,-500.0,0.00040273,5]
[340174178,1728762641642,-500.0,0.00040273,5]
[340174179,1728762641654,-202.383643,0.000403,6]
[340174180,1728762641665,-706.654883,0.00040327,14]
[340174181,1728762641675,-706.654883,0.00040327,14]
[340174182,1728762641687,-151.0,0.00040327,14]
[340174183,1728762641697,-151.0,0.00040327,14]
[340174184,1728762641707,-27714.7782944,0.00040328,6]
[340174185,1728762641719,-41572.1674416,0.00040338,6]
[340174186,1728762641730,-151.449402,0.00040338,14]
[340174187,1728762641741,-152.395837,0.00040338,14]
[340174188,1728762641752,-151.0,0.00040338,14]
[340174189,1728762641762,-151.0,0.00040338,14]
[340174190,1728762641774,-151.0,0.00040338,14]
[340174191,1728762641785,-151.0,0.00040338,14]
[340174192,1728762641796,-151.0,0.00040338,3]
[340174193,1728762641806,-151.0,0.00040338,2]
[340174194,1728762641818,-151.0,0.00040338,14]
[340174195,1728762641829,-151.0,0.00040338,14]
[340174196,1728762641840,-151.0,0.00040338,14]
[340174197,1728762641850,-151.0,0.00040338,14]
[340174198,1728762641861,-151.0,0.00040338,14]
[340174199,1728762641872,-197.997142,0.00040338,14]
[340174200,1728762641884,-197.997142,0.00040338,14]
[340174201,1728762641894,-151.0,0.00040338,14]
[340174202,1728762641905,-151.0,0.00040338,14]
[340174203,1728762641916,-151.0,0.00040338,14]
[340174204,1728762641927,-641.006733,0.00040338,2]
[340174205,1728762641938,-641.006733,0.00040338,2]
[340174206,1728762641948,-155.157266,0.00040348,14]
[340174207,1728762641958,-151.0,0.00040348,14]
[340174208,1728762641972,-151.0,0.00040348,14]
[340174209,1728762641984,-151.0,0.00040348,14]
[340174210,1728762641993,-151.0,0.00040348,14]
[340174211,1728762642005,-151.0,0.00040348,3]
[340174212,1728762642017,-163.648406,0.00040348,2]
[340174213,1728762642028,-162.332912,0.00040348,14]
[340174214,1728762642037,-151.0,0.00040348,14]
[340174215,1728762642046,-151.0,0.00040348,14]
[340174216,1728762642057,-151.0,0.00040348,14]
[340174217,1728762642067,-151.0,0.00040348,14]
[340174218,1728762642076,-197.997142,0.00040348,14]
[340174219,1728762642086,-197.997142,0.00040348,14]
[340174220,1728762642097,-154.910349,0.00040348,14]
[340174221,1728762642107,-151.0,0.00040348,14]
[340174222,1728762642117,-247.646985,0.00040348,14]
[340174223,1728762642127,-641.006733,0.00040348,2]
[340174224,1728762642137,-641.006733,0.00040348,2]
[340174225,1728762642146,-69286.945736,0.00040358,6]
[340174226,1728762642156,-157.975059,0.00040358,14]
[340174227,1728762642166,-151.0,0.00040358,14]
[340174228,1728762642175,-151.0,0.00040358,14]
[340174229,1728762642186,-151.0,0.00040358,14]
[340174230,1728762642195,-151.0,0.00040358,14]
[340174231,1728762642205,-151.0,0.00040358,3]
[340174232,1728762642215,-151.0,0.00040358,14]
[340174233,1728762642224,-162.844359,0.00040358,14]
[340174234,1728762642234,-151.0,0.00040358,14]
[340174235,1728762642244,-151.0,0.00040358,14]
[340174236,1728762642254,-197.997142,0.00040358,14]
[340174237,1728762642263,-197.997142,0.00040358,14]
[340174238,1728762642273,-151.0,0.00040358,14]
[340174239,1728762642283,-641.006733,0.00040358,2]
[340174240,1728762642293,-706.654883,0.00040358,14]
[340174241,1728762642302,-641.006733,0.00040358,2]
[340174242,1728762642312,-706.654883,0.00040358,14]
[340174243,1728762642322,-151.0,0.00040358,14]
[340174244,1728762642331,-151.0,0.00040358,14]
[340174245,1728762642341,-44330.76042877,0.00040368,2]
[340174258,1728762646616,-2139.73,0.00039826,10]
[340174259,1728762646627,-58.90705233,0.00040273,5]
[340174260,1728762651534,169.388942,0.00034663,2]
[340174261,1728762741778,523.15975143,0.00029001,2]
[340174286,1728763625128,-488.23353607,0.00028957,2]
[340174287,1728763636316,-264.4663754,0.00028957,2]
[340174288,1728763636339,-362.39880104,0.00029001,2]
[340174289,1728763636360,-185.7365742,0.00030376,30]
[340174290,1728763636381,-2300.849396,0.00031286,2]
[340174291,1728763636402,-173.0,0.00031309,2]
[340174292,1728763636510,-2300.849396,0.00031971,2]
[340174293,1728763636538,-400.0,0.00032056,2]
[340174294,1728763636559,-400.0,0.00032056,2]
[340174295,1728763636579,-3000.0,0.00032104,2]
[340174296,1728763636599,-1753.01763104,0.00032136,2]
[340174297,1728763636619,-4845.06591842,0.00032138,2]
[340174298,1728763642158,-326.85971708,0.00031209,2]
[340174299,1728763642180,-8054.05352758,0.00032138,2]
[340174300,1728763642200,-165.547295,0.00032179,2]
[340174301,1728763642222,-169.086105,0.00032566,2]
[340174302,1728763642245,-2300.849396,0.00032656,2]
[340174303,1728763642268,-250.0,0.00032737,2]
[340174304,1728763642290,-250.0,0.00032826,2]
[340174305,1728763642312,-250.0,0.00032916,2]
[340174306,1728763642336,-250.0,0.00033006,2]
[340174307,1728763642357,-250.0,0.00033096,2]
[340174308,1728763642380,-250.0,0.00033186,2]
[340174309,1728763642400,-500.0,0.00033267,5]
[340174310,1728763642424,-250.0,0.00033275,2]
[340174311,1728763642446,-1163.5396383,0.00033313,2]
[340174312,1728763642467,-250.0,0.00033365,2]
[340174313,1728763642491,-250.0,0.00033455,2]
[340174314,1728763642513,-250.0,0.00033545,2]
[340174315,1728763642535,-250.0,0.00033634,2]
[340174316,1728763642559,-250.0,0.00033724,2]
[340174317,1728763642583,-476.12268762,0.00033804,2]
[340174318,1728763647104,-326.85971706,0.00031624,2]
[340174319,1728763647127,-49.96757303,0.00033814,2]
[340174320,1728763648102,-200.03242697,0.00033814,2]
[340174321,1728763648125,-451.10902308,0.00033838,7]
[340174322,1728763648154,-48.89097692,0.00033838,7]
[340174323,1728763648176,-500.0,0.00033838,7]
[340174324,1728763648196,-209.20708881,0.00033838,7]
[340174325,1728763648217,-83.07499304,0.00033838,7]
[340174326,1728763652117,-326.85971706,0.00032038,2]
[340174327,1728763652141,-416.92500696,0.00033838,7]
[340174328,1728763652165,-292.96266248,0.00033838,7]
[340174338,1728763746101,-400.0,0.00033184,2]
[340174339,1728763746129,-400.0,0.00033184,2]
[340174340,1728763746153,-13310.64818787,0.00033185,2]
[340174345,1728763761117,-10009.55168673,0.00033185,2]
[340174346,1728763761142,-154.97830822,0.00033839,7]
[340174347,1728763761164,-500.0,0.00033873,5]
[340174348,1728763761185,-501.64914619,0.00033873,5]
[340174349,1728763761207,-500.80472597,0.00033873,5]
[340174350,1728763761231,-250.0,0.00033904,2]
[340174351,1728763761257,-250.0,0.00033994,2]
[340174352,1728763761280,-250.0,0.00034083,2]
[340174353,1728763761303,-500.0,0.00034125,5]
[340174354,1728763761325,-504.09472035,0.00034125,5]
[340174355,1728763761350,-250.0,0.00034173,2]
[340174356,1728763761376,-250.0,0.00034263,2]
[340174357,1728763761398,-7180.47112742,0.00034342,2]
[340174358,1728763761423,-250.0,0.00034353,2]
[340174359,1728763761446,-500.38316548,0.00034367,5]
[340174360,1728763761466,-500.0,0.00034367,5]
[340174361,1728763761490,-500.0,0.00034367,5]
[340174362,1728763761513,-500.0,0.00034367,5]
[340174363,1728763761537,-250.0,0.00034442,2]
[340174364,1728763761559,-361.44612943,0.0003522,5]
[340174365,1728763761581,-568.45743712,0.00035454,2]
[340174366,1728763761606,-560.0,0.00035648,2]
[340174367,1728763761629,-1000.0,0.00035737,5]
[340174368,1728763761655,-171.708,0.00035847,43]
[340174369,1728763761680,-500.0,0.0003595,5]
[340174370,1728763763106,-560.0,0.00036503,2]
[340174372,1728763796070,168.135292,0.00036022,2]
[340174373,1728763804912,250.0,0.00036566,2]
[340174374,1728763805160,250.0,0.00036666,2]
[340174375,1728763805440,250.0,0.00036767,2]
[340174376,1728763805650,250.0,0.00036867,2]
[340174378,1728763823216,154.97830822,0.00036867,14]
[340174392,1728763832598,-250.0,0.00036967,2]
[340174393,1728763832608,-250.0,0.00037068,2]
[340174394,1728763832620,-250.0,0.00037168,2]
[340174396,1728763832633,-250.0,0.00037268,2]
[340174398,1728763832643,-250.0,0.00037368,2]
[340174400,1728763832652,-250.0,0.00037469,2]
[340174403,1728763832662,-250.0,0.00037569,2]
[340174404,1728763832672,-250.0,0.00037669,2]
[340174405,1728763832684,-250.0,0.00037769,2]
[340174406,1728763832694,-250.0,0.0003787,2]
[340174407,1728763832703,-250.0,0.0003797,2]
[340174408,1728763832714,-250.0,0.0003807,2]
[340174409,1728763832724,-250.0,0.00038171,2]
[340174410,1728763832733,-400.0,0.00038262,2]
[340174411,1728763832743,-400.0,0.00038262,2]
[340174412,1728763832754,-1927.37336038,0.00038263,2]
[340174413,1728763833192,-215.30629885,0.00038263,2]
[340174439,1728763838909,-166.53633981,0.00038263,2]
[340174445,1728763839100,-1795.11759629,0.00038263,2]
[340174461,1728763840762,-3076.13753208,0.00038263,2]
[340174462,1728763840772,-250.0,0.00038271,2]
[340174463,1728763840782,-250.0,0.00038371,2]
[340174464,1728763840791,-250.0,0.00038471,2]
[340174465,1728763840802,-195.6635752,0.00038493,2]
[340174466,1728763840811,-153.0,0.00038493,2]
[340174467,1728763840821,-153.0,0.00038493,2]
[340174468,1728763840830,-153.0,0.00038493,2]
[340174469,1728763840840,-153.0,0.00039452,2]
[340174470,1728763840850,-153.0,0.00039452,2]
[340174471,1728763840859,-153.0,0.00039452,2]
[340174472,1728763840868,-153.0,0.00039452,2]
[340174473,1728763840878,-255.5832651,0.00039544,2]
[340174474,1728763840887,-255.58326506,0.00039622,2]
[340174475,1728763840897,-3565.14,0.00039634,10]
[340174476,1728763840907,-2970.95,0.00039634,10]
[340174477,1728763840917,-2475.79,0.00039634,10]
[340174478,1728763840927,-2063.16,0.00039634,10]
[340174479,1728763840936,-500.0,0.00039644,15]
[340174480,1728763840947,-344.49023399,0.00039644,15]
[340174481,1728763840957,-500.0,0.00039644,15]
[340174482,1728763840966,-534.03909437,0.00039644,15]
[340174483,1728763840976,-500.0,0.00039644,15]
[340174484,1728763840986,-500.0,0.00039644,15]
[340174485,1728763840995,-500.0,0.00039644,15]
[340174486,1728763841005,-500.0,0.00039644,15]
[340174487,1728763841015,-392.67101048,0.00039644,15]
[340174488,1728763841025,-124984.99902,0.00039645,5]
[340174489,1728763841036,-16628.8669765,0.00039645,5]
[340174490,1728763841046,-20000.0,0.00039665,4]
[340174491,1728763841055,-500.0,0.00039673,5]
[340174492,1728763841065,-255.58326506,0.00039699,2]
[340174493,1728763841076,-255.58326506,0.00039777,2]
[340174494,1728763841085,-255.58326506,0.00039854,2]
[340174495,1728763841095,-4430.54106652,0.00039873,2]
[340174496,1728763841104,-124984.99902,0.00039944,6]
[340174497,1728763841114,-16628.8669765,0.00039944,6]
[340174498,1728763841123,-62492.4995099,0.00039944,6]
[340174499,1728763841137,-41572.1674412,0.00039944,6]
[340174500,1728763841147,-1000.0,0.00039953,7]
[340174501,1728763841156,-1000.0,0.00039953,120]
[340174502,1728763841167,-252.068897,0.00039954,2]
[340174503,1728763841176,-68776.59109741,0.00039954,2]
[340174504,1728763841186,-23875.7121061,0.00039954,2]
[340174505,1728763841195,-16628.8669765,0.00039954,6]
[340174506,1728763841206,-44330.76042877,0.00039964,2]
[340174507,1728763841215,-13204.55680408,0.00039964,2]
[340174513,1728763843770,-153.0,0.00038493,2]
[340174514,1728763843780,-3359.05948038,0.00039964,2]
[340174515,1728763843953,-20.0,0.00039964,2]
[340174533,1728763847012,-1776.15378801,0.00039964,2]
[340174538,1728764835151,-165.807135,0.00032897,2]
[340174539,1728764835174,-165.807135,0.00033004,2]
[340174540,1728764835197,-165.807135,0.00033111,2]
[340174541,1728764835220,-564.61015811,0.00033113,2]
[340174542,1728764845134,-362.84990945,0.00033113,2]
[340174543,1728764848132,-2072.53993244,0.00033113,2]
[340174544,1728764848155,-165.807135,0.00033219,2]
[340174545,1728764848178,-165.547296,0.00033224,2]
[340174546,1728764848200,-165.807135,0.00033326,2]
[340174547,1728764848221,-165.807135,0.00033433,2]
[340174548,1728764848245,-165.807135,0.0003354,2]
[340174549,1728764848269,-165.807135,0.00033647,2]
[340174550,1728764848292,-165.807135,0.00033754,2]
[340174551,1728764848316,-165.807135,0.00033861,2]
[340174552,1728764848337,-165.807135,0.00033969,2]
[340174553,1728764848359,-159.25506225,0.00034076,2]
[340174554,1728764851099,-6.55207275,0.00034076,2]
[340174555,1728764851129,-165.807135,0.00034183,2]
[340174556,1728764851153,-165.807135,0.0003429,2]
[340174557,1728764851269,-165.807135,0.00034397,2]
[340174558,1728764851296,-165.807135,0.00034504,2]
[340174559,1728764851318,-165.807135,0.00034611,2]
[340174560,1728764851340,-250.0,0.00034726,2]
[340174561,1728764851363,-400.0,0.0003578,2]
[340174562,1728764851387,-19298.8703931,0.00035865,2]
[340174564,1728764918759,474480.02792658,0.00022,30]
[340174567,1728764922455,3703.79677056,0.0001,2]
[340174568,1728764949259,-5601.1296069,0.0003489,2]
[340174569,1728764949281,-620.00000008,0.00035,2]
[340174570,1728764949304,-400.0,0.00035259,2]
[340174571,1728764949326,-400.0,0.00035259,2]
[340174572,1728764949351,-500.0,0.00035873,5]
[340174573,1728764949372,-140.05994156,0.00035873,5]
[340174574,1728764949408,-170.12258044,0.00035873,5]
[340174575,1728764949432,-500.0,0.00035873,5]
[340174576,1728764949455,-429.92893177,0.00035873,5]
[340174577,1728764949478,-500.0,0.00035873,5]
[340174578,1728764949505,-500.0,0.00035873,5]
[340174579,1728764949528,-500.0,0.00035873,5]
[340174580,1728764949550,-500.0,0.00035873,5]
[340174581,1728764949573,-500.0,0.00035873,5]
[340174582,1728764952125,-165.0541834,0.00035881,2]
[340174583,1728764952146,-2630.97144416,0.00036,30]
[340174584,1728764952168,-500.0,0.0003605,5]
[340174585,1728764952189,-500.0,0.0003605,5]
[340174586,1728764952211,-500.0,0.000362,5]
[340174590,1728764966803,500.0,0.000362,5]
[340174591,1728764972930,330.30137514,0.00033,2]
[340174655,1728765031783,-500.0,0.00036467,5]
[340174656,1728765031804,-549.25691751,0.00036467,5]
[340174657,1728765031817,-161.50017975,0.00036467,5]
[340174658,1728765031829,-400.0,0.00037489,2]
[340174659,1728765031840,-400.0,0.00037489,2]
[340174660,1728765031851,-519.48,0.0003749,3]
[340174661,1728765031864,-4675.6,0.0003749,10]
[340174662,1728765031874,-3896.33,0.0003749,10]
[340174663,1728765031885,-184.34583751,0.00037499,15]
[340174664,1728765031895,-188.124278,0.00037499,15]
[340174665,1728765031906,-223.86712875,0.00037499,15]
[340174666,1728765031916,-500.0,0.00037499,15]
[340174667,1728765031925,-500.0,0.00037499,15]
[340174668,1728765031935,-500.0,0.00037499,15]
[340174669,1728765031944,-500.0,0.00037499,15]
[340174670,1728765031954,-534.03909436,0.00037499,15]
[340174671,1728765031964,-500.0,0.00037499,15]
[340174672,1728765031974,-500.0,0.00037499,15]
[340174673,1728765031984,-500.0,0.00037499,15]
[340174674,1728765031993,-344.49023399,0.00037499,15]
[340174675,1728765032003,-426.67116165,0.00037499,15]
[340174676,1728765032016,-517.35556342,0.00037499,15]
[340174677,1728765032025,-500.0,0.00037499,15]
[340174678,1728765032035,-500.0,0.00037499,15]
[340174679,1728765032044,-38516.69765767,0.000375,120]
[340174695,1728765038566,-2068.22318995,0.0003749,10]
[340174702,1728765039988,-1178.71681005,0.0003749,10]
[340174703,1728765040000,-174326.60290747,0.000375,120]
[340174704,1728765040010,-236.81406536,0.000375,14]
[340174705,1728765040022,-184.835,0.00037767,49]
[340174706,1728765040034,-649.13077539,0.00038,14]
[340174707,1728765040045,-19285.95510491,0.00039,2]
[340174708,1728765040056,-337.1801155,0.00039178,2]
[340174709,1728765040066,-500.0,0.00039673,5]
[340174710,1728765040077,-500.0,0.00039673,5]
[340174711,1728765040087,-500.0,0.00039673,5]
[340174712,1728765040097,-28050.01088808,0.00039696,2]
[340174713,1728765040107,-1011.4085868,0.00039854,2]
[340174714,1728765040118,-150.0,0.000399,2]
[340174715,1728765040128,-202170.507945,0.00039944,6]
[340174716,1728765040138,-14965.9802791,0.00039944,6]
[340174717,1728765040149,-1011.40858676,0.0003995,2]
[340174718,1728765040161,-30117.19640591,0.00039964,2]
[340174719,1728765040171,-500.0,0.00039973,5]
[340174720,1728765040183,-343.144508,0.0004,2]
[340174721,1728765040194,-1222.0,0.0004,2]
[340174722,1728765040207,-1222.0,0.0004,120]
[340174723,1728765040217,-11744.92848698,0.0004,120]
[340174724,1728765040226,-9386.1453699,0.0004,10]
[340174725,1728765040238,-298.7695201,0.0004,2]
[340174726,1728765040249,-156.8796274,0.0004,2]
[340174727,1728765040259,-317.3629164,0.0004,2]
[340174728,1728765040270,-153.0,0.0004,2]
[340174729,1728765040280,-308.3117526,0.0004,2]
[340174730,1728765040292,-301.5202838,0.0004,2]
[340174731,1728765040302,-153.0,0.0004,2]
[340174732,1728765040312,-301.5202838,0.0004,2]
[340174733,1728765040323,-153.0,0.0004,2]
[340174734,1728765040334,-153.0,0.0004,2]
[340174735,1728765040344,-301.5202838,0.0004,2]
[340174736,1728765040355,-454.5202838,0.0004,2]
[340174737,1728765040365,-820.1646848,0.0004,2]
[340174738,1728765040386,-413.7492508,0.0004,2]
[340174739,1728765040397,-413.7492508,0.0004,2]
[340174740,1728765040407,-301.5202838,0.0004,2]
[340174741,1728765040416,-413.7492508,0.0004,2]
[340174742,1728765040426,-413.7492508,0.0004,2]
[340174743,1728765040437,-301.5202838,0.0004,2]
[340174744,1728765040447,-246.8417184,0.0004,2]
[340174745,1728765040456,-413.7492508,0.0004,2]
[340174746,1728765040466,-413.7492508,0.0004,2]
[340174747,1728765040476,-210.0488919,0.0004,2]
[340174748,1728765040486,-4430.54106652,0.00040032,2]
[340174749,1728765040496,-1011.40858676,0.00040046,2]
[340174750,1728765040505,-560.0,0.00040093,5]
[340174751,1728765040515,-50542.6269862,0.00040131,6]
[340174752,1728765040524,-3741.49506978,0.00040131,6]
[340174753,1728765040535,-1011.40858676,0.00040141,2]
[340174754,1728765040544,-500.0,0.00040173,5]
[340174755,1728765040553,-500.0,0.00040173,5]
[340174756,1728765040562,-500.0,0.00040173,5]
[340174757,1728765040572,-500.0,0.00040173,5]
[340174758,1728765040581,-500.0,0.00040173,5]
[340174759,1728765040591,-150.112233,0.000402,10]
[340174760,1728765040601,-150.112233,0.000402,8]
[340174761,1728765040610,-150.112233,0.000402,7]
[340174762,1728765040620,-150.112233,0.000402,9]
[340174763,1728765040630,-1011.40858676,0.00040237,2]
[340174764,1728765040639,-50542.6269862,0.00040248,6]
[340174765,1728765040649,-11224.4852093,0.00040248,6]
[340174766,1728765040658,-3741.49506978,0.00040258,6]
[340174767,1728765040669,-10283.7156964,0.00040268,26]
[340174768,1728765040681,-26600.76507654,0.00040268,2]
[340174769,1728765040691,-258.057463,0.00040268,14]
[340174770,1728765040700,-151.0,0.00040268,14]
[340174771,1728765040712,-150.112233,0.000403,7]
[340174772,1728765040724,-150.112233,0.000403,9]
[340174773,1728765040735,-150.112233,0.000403,8]
[340174774,1728765040748,-263.518809,0.000403,2]
[340174775,1728765040759,-150.112233,0.000403,9]
[340174776,1728765040770,-150.112233,0.000403,5]
[340174777,1728765040782,-151.0,0.000403,14]
[340174778,1728765040794,-151.0,0.000403,14]
[340174779,1728765040804,-151.0,0.000403,14]
[340174780,1728765040815,-1000.0,0.00040317,120]
[340174781,1728765040826,-14965.9802791,0.00040328,6]
[340174782,1728765040837,-156.652751,0.00040338,14]
[340174783,1728765040847,-151.0,0.00040338,14]
[340174784,1728765040857,-152.395837,0.00040338,14]
[340174785,1728765040867,-151.0,0.00040338,14]
[340174786,1728765040878,-152.617656,0.00040338,14]
[340174787,1728765040890,-151.0,0.00040338,3]
[340174788,1728765040901,-151.0,0.00040338,14]
[340174789,1728765040913,-295.439144,0.00040338,14]
[340174790,1728765040928,-157.975059,0.00040338,14]
[340174791,1728765040939,-151.0,0.00040338,14]